bitfinex-derivatives/quotes_SOLF0:USTF0_20240904
["timestamp","ask_amount","ask_price","bid_price","bid_amount"]
[1725453630998,0.05336905,128.58,128.56,0.05659036]
[1725453632391,0.05336905,128.58,128.57,27.8091]
[1725453632890,25.3025,128.65,128.57,27.8091]
[1725453632891,5.2693,128.65,128.61,3.8877]
[1725453633091,9.15585419,128.65,128.61,3.8877]
[1725453633793,234.7663,128.77,128.64,23.92]
[1725453633984,2.7504,128.72,128.69,23.92]
[1725453634180,0.0519478,128.72,128.69,23.974695]
[1725453634386,0.0519478,128.72,128.71,3.8848]
[1725453634591,0.0519478,128.72,128.71,27.8048]
[1725453634996,0.0519478,128.72,128.69,0.054695]
[1725453634997,0.0519478,128.72,128.7,3.885]
[1725453636189,0.0519478,128.72,128.69,3.940095]
[1725453637195,0.0519478,128.72,128.69,0.054695]
[1725453638089,0.0519478,128.72,128.69,23.974695]
[1725453638392,23.92,128.86,128.71,23.92]
[1725453638596,2.7464,128.85,128.78,23.92]
[1725453639295,0.05003162,128.83,128.8,3.93611732]
[1725453639885,3.93123162,128.83,128.8,0.05411732]
[1725453641001,1.3459,128.99,128.82,29.82]
[1725453641196,0.40743442,128.98,128.9,29.82]
[1725453641396,1.3556,128.98,128.9,3.92116877]
[1725453641589,3.89320481,128.97,128.92,29.82]
[1725453641901,0.05914624,128.96,128.93,0.04919698]
[1725453642196,3.95287938,128.96,128.93,0.04944894]
[1725453642392,0.04996486,128.96,128.87,29.82]
[1725453642593,3.8778,128.95,128.89,3.8792]
[1725453642789,29.82,128.94,128.84,29.82]
[1725453642993,1.4557,128.93,128.84,29.82]
[1725453643200,5.3342,128.93,128.87,3.8798]
[1725453643397,5.3342,128.93,128.89,0.05861598]
[1725453643398,0.05257774,128.91,128.89,0.05861598]
[1725453643588,0.05257774,128.91,128.84,29.82]
[1725453643898,0.05257774,128.91,128.84,33.7007]
[1725453644090,29.82,128.9,128.67,33.75981141]
[1725453644287,3.87378539,128.94,128.56,11.6676]
[1725453644288,29.82,128.99,128.88,29.82]
[1725453644491,1.3775,128.97,128.88,29.82]
[1725453644697,0.05620571,128.94,128.91,0.0526837]
[1725453645098,0.05620571,128.94,128.84,29.82]
[1725453645296,29.82,128.95,128.85,3.8806]
[1725453645297,3.879,128.91,128.85,3.8806]
[1725453645601,7.6921578,128.91,128.85,3.8806]
[1725453645795,3.8792,128.9,128.85,3.8806]
[1725453646097,0.05148686,128.89,128.86,0.05076269]
[1725453646798,1.3775,128.97,128.86,0.05076269]
[1725453646799,7.795,128.99,128.87,29.82]
[1725453646999,7.795,128.99,128.9,29.82]
[1725453647299,3.8776,128.96,128.9,33.6989]
[1725453647808,0.05430929,128.94,128.92,0.05273467]
[1725453648893,0.05430929,128.94,128.74,8.123]
[1725453649098,33.65247449,128.94,128.83,29.82]
[1725453649495,3.8793,128.9,128.85,3.8805]
[1725453649893,0.05515272,128.89,128.86,0.05242123]
[1725453650103,0.05666114,128.89,128.88,29.82]
[1725453651396,0.05666114,128.89,128.86,29.87680331]
[1725453651803,0.05666114,128.89,128.86,0.05680331]
[1725453652489,3.93626114,128.89,128.86,0.05680331]
[1725453653095,29.82,129.0,128.88,29.82]
[1725453653298,1.4026,128.99,128.9,29.82]
[1725453653904,1.3252,128.98,128.9,29.82]
[1725453654098,0.05365551,128.95,128.93,0.0547843]
[1725453654303,3.8779,128.94,128.93,0.0547843]
[1725453654998,7.77300972,128.93,128.88,29.82]
[1725453655201,3.8783,128.93,128.88,29.82]
[1725453655706,7.82771724,128.93,128.88,29.82]
[1725453655905,0.0556627,128.92,128.89,3.92833643]
[1725453656598,0.0556627,128.92,128.91,3.8788]
[1725453658600,0.0556627,128.92,128.9,33.699]
[1725453659512,0.0556627,128.92,128.91,3.8788]
[1725453659805,1.4065,128.97,128.9,29.82]
[1725453660108,1.4065,128.97,128.93,29.82]
[1725453660309,5.2837,128.97,128.93,29.82]
[1725453660806,3.8776,128.95,128.94,0.05113467]
[1725453661017,1.3524,128.96,128.89,29.82]
[1725453661308,3.8787,128.92,128.88,3.8795]
[1725453661508,2.7867,128.96,128.87,33.76717099]
[1725453661903,3.8786,128.92,128.9,0.05917239]
[1725453662206,3.8786,128.92,128.78,11.61033581]
[1725453662207,29.87379326,128.93,128.83,29.82]
[1725453662410,33.78113779,128.93,128.83,29.82]
[1725453662601,3.8796,128.89,128.83,29.82]
[1725453662804,33.78113779,128.93,128.83,29.82]
[1725453663003,41.57613779,128.93,128.83,29.82]
[1725453663211,0.05674878,128.89,128.8,29.82]
[1725453663512,29.82,128.91,128.74,0.5108]
[1725453663513,29.82,128.84,128.74,29.82]
[1725453663719,1.3206,128.83,128.75,3.8835]
[1725453664207,3.8826,128.79,128.75,3.8835]
[1725453664402,3.8826,128.79,128.74,33.71634738]
[1725453664403,0.05686381,128.78,128.76,0.05932938]
[1725453664611,0.05927406,128.78,128.69,29.82]
[1725453664804,3.8835,128.76,128.71,3.8848]
[1725453665007,29.82,128.8,128.71,3.8848]
[1725453665008,3.87486313,128.78,128.71,3.8848]
[1725453665209,29.82,128.8,128.69,29.82]
[1725453665407,3.8836,128.76,128.69,29.82]
[1725453665616,33.66262439,128.8,128.69,29.82]
[1725453665803,0.05981557,128.74,128.71,0.05922303]
[1725453666007,0.05966269,128.74,128.71,0.05090486]
[1725453667013,0.05966269,128.74,128.71,3.93570486]
[1725453669117,0.05966269,128.74,128.72,3.8845]
[1725453669713,0.05966269,128.74,128.73,3.8842]
[1725453669910,0.05966269,128.74,128.71,35.88090486]
[1725453670511,0.05966269,128.74,128.72,3.8843]
[1725453670712,0.05966269,128.74,128.71,35.88090486]
[1725453671915,0.05966269,128.74,128.72,3.8843]
[1725453674511,0.05966269,128.74,128.73,3.8842]
[1725453678327,3.94356269,128.74,128.71,0.05090486]
[1725453678626,0.05966269,128.74,128.71,0.05090486]
[1725453679031,3.94386269,128.74,128.71,0.05090486]
[1725453679528,0.05966269,128.74,128.71,0.05090486]
[1725453679728,3.8843,128.73,128.71,0.05090486]
[1725453680233,0.05966269,128.74,128.71,3.93570486]
[1725453680739,3.94376269,128.74,128.71,3.93570486]
[1725453681329,0.05966269,128.74,128.72,3.8845]
[1725453681629,0.05966269,128.74,128.71,0.05090486]
[1725453682027,0.05966269,128.74,128.73,3.8842]
[1725453682932,0.05966269,128.74,128.71,0.05090486]
[1725453683131,6.54822683,128.82,128.73,35.83]
[1725453683330,3.81012683,128.82,128.77,35.83]
[1725453683544,2.7583,128.86,128.79,35.83]
[1725453683744,2.7583,128.86,128.83,3.8811]
[1725453684127,2.80770592,128.86,128.83,3.94019124]
[1725453685027,0.04940592,128.86,128.83,0.05909124]
[1725453685731,3.8808,128.85,128.83,0.05909124]
[1725453688037,3.92980592,128.86,128.83,3.94029124]
[1725453688429,0.04940592,128.86,128.83,0.05909124]
[1725453688937,3.92980592,128.86,128.83,3.94019124]
[1725453690337,3.92980592,128.86,128.84,3.8809]
[1725453690727,0.04940592,128.86,128.85,3.8806]
[1725453691733,0.04940592,128.86,128.84,3.8808]
[1725453691931,0.04940592,128.86,128.83,0.05909124]
[1725453692639,0.04940592,128.86,128.85,3.8806]
[1725453693639,0.04940592,128.86,128.84,3.8808]
[1725453694530,0.04940592,128.86,128.83,0.05909124]
[1725453695442,0.04940592,128.86,128.84,3.8809]
[1725453696239,0.04940592,128.86,128.83,0.05909124]
[1725453696240,0.04940592,128.86,128.85,3.8806]
[1725453696837,0.04940592,128.86,128.83,3.94019124]
[1725453697235,0.04940592,128.86,128.83,0.05909124]
[1725453697442,0.04940592,128.86,128.84,29.81]
[1725453698543,0.04940592,128.86,128.85,3.8806]
[1725453699843,0.04940592,128.86,128.84,29.81]
[1725453700343,0.04940592,128.86,128.85,3.8806]
[1725453705350,1.415,128.93,128.89,3.8794]
[1725453705550,3.8787,128.92,128.89,3.8794]
[1725453705746,2.7883,128.93,128.89,3.8794]
[1725453706047,2.7883,128.93,128.87,29.81]
[1725453706244,3.8788,128.91,128.88,3.8795]
[1725453706445,3.930786,128.91,128.88,3.93486552]
[1725453708351,0.051986,128.91,128.89,3.8793]
[1725453708748,3.930886,128.91,128.88,3.93496552]
[1725453711452,3.930886,128.91,128.89,3.8794]
[1725453713948,0.051986,128.91,128.89,3.8794]
[1725453715150,0.051986,128.91,128.88,0.05536552]
[1725453715654,32.5983,128.93,128.86,3.8803]
[1725453716347,3.8798,128.88,128.86,3.8803]
[1725453716545,3.93254076,128.88,128.86,3.937301]
[1725453718260,3.88,128.87,128.86,0.057001]
[1725453718455,0.05274076,128.88,128.81,29.81]
[1725453718649,29.81,128.9,128.81,29.81]
[1725453718650,2.8728,128.87,128.81,29.81]
[1725453718852,3.8808,128.85,128.82,3.8813]
[1725453719354,3.93903221,128.85,128.82,3.9329834]
[1725453719654,3.8809,128.84,128.82,3.9329834]
[1725453720053,0.05823221,128.85,128.82,0.0516834]
[1725453720258,3.8812,128.83,128.82,0.0516834]
[1725453720957,0.05823221,128.85,128.82,0.0516834]
[1725453721154,0.05823221,128.85,128.83,3.8811]
[1725453721357,3.93903221,128.85,128.82,0.0516834]
[1725453721658,0.05823221,128.85,128.82,0.0516834]
[1725453722158,3.8809,128.84,128.82,0.0516834]
[1725453722464,0.05823221,128.85,128.82,0.0516834]
[1725453722660,3.8812,128.83,128.82,0.0516834]
[1725453724761,3.8812,128.84,128.82,0.0516834]
[1725453724959,0.05823221,128.85,128.82,0.0516834]
[1725453725261,3.8787,128.92,128.84,29.81]
[1725453725462,29.81,128.96,128.8,33.7338336]
[1725453725463,4.3295,128.94,128.87,29.81]
[1725453725664,4.3295,128.94,128.88,3.8796]
[1725453726158,3.879,128.91,128.88,3.8796]
[1725453726359,3.879,128.91,128.9,0.0580391]
[1725453727063,3.92896898,128.92,128.9,0.0580391]
[1725453727466,3.8788,128.91,128.9,0.0580391]
[1725453728062,3.92896898,128.92,128.9,0.0580391]
[1725453728762,0.05026898,128.92,128.84,29.81]
[1725453728965,37.95772478,128.94,128.84,29.81]
[1725453729263,3.8793,128.9,128.87,3.8799]
[1725453729966,3.93106171,128.9,128.87,3.93780966]
[1725453730770,3.93106171,128.9,128.88,3.8797]
[1725453732069,0.05176171,128.9,128.89,3.8794]
[1725453733962,0.05176171,128.9,128.88,3.8796]
[1725453734565,0.05176171,128.9,128.89,3.8794]
[1725453735162,0.05176171,128.9,128.66,11.6585]
[1725453735358,29.81,128.9,128.8,29.81]
[1725453735564,29.81,128.93,128.82,29.81]
[1725453735766,3.8797,128.89,128.82,29.81]
[1725453735967,3.8797,128.89,128.83,3.85681024]
[1725453736169,3.8797,128.89,128.85,3.8806]
[1725453736559,0.0572396,128.88,128.83,3.85681024]
[1725453736871,0.0572396,128.88,128.86,29.81]
[1725453737060,0.0540806,128.88,128.87,29.81]
[1725453737265,0.05188997,128.89,128.88,3.8797]
[1725453737561,0.04957864,128.9,128.87,33.74029517]
[1725453737762,0.04957864,128.9,128.89,3.8794]
[1725453737963,0.04957864,128.9,128.89,33.6894]
[1725453738371,0.04957864,128.9,128.89,3.8794]
[1725453739471,0.04957864,128.9,128.88,3.8796]
[1725453740165,0.04957864,128.9,128.89,3.8794]
[1725453744972,0.04957864,128.9,128.87,7.81009517]
[1725453745178,0.04957864,128.9,128.85,29.81]
[1725453745368,0.05529781,128.89,128.85,29.81]
[1725453745564,0.05529781,128.89,128.88,3.8797]
[1725453745774,0.05529781,128.89,128.85,29.81]
[1725453746174,0.05529781,128.89,128.87,3.8798]
[1725453747071,0.05529781,128.89,128.85,29.81]
[1725453747875,0.05529781,128.89,128.88,3.8797]
[1725453751079,0.05529781,128.89,128.88,33.6897]
[1725453751285,1.4456,128.94,128.91,3.8787]
[1725453751484,5.3237,128.94,128.88,29.81]
[1725453751685,1.3627,128.96,128.93,3.8782]
[1725453751887,1.3627,128.96,128.88,29.81]
[1725453752186,0.05459118,128.93,128.91,0.05961901]
[1725453752575,0.05459118,128.93,128.92,3.8785]
[1725453753579,1.3627,129.01,128.97,3.877]
[1725453753780,1.3627,129.01,128.95,29.81]
[1725453754682,0.05598788,128.99,128.97,0.05551916]
[1725453755383,0.05598788,128.99,128.97,3.93251916]
[1725453756286,0.05598788,128.99,128.98,3.8767]
[1725453758576,1.3448,129.07,128.97,29.86551916]
[1725453758773,3.79042011,129.06,128.99,29.81]
[1725453758972,4.0371,129.07,128.99,29.81]
[1725453758973,4.0371,129.07,129.0,3.94433484]
[1725453759582,0.04891869,129.05,129.02,0.05460148]
[1725453759781,0.04891869,129.05,129.04,3.8748]
[1725453759977,0.04891869,129.05,129.02,0.05460148]
[1725453760182,3.8749,129.04,129.02,0.05460148]
[1725453760581,0.04891869,129.05,129.02,0.05460148]
[1725453762295,3.8752,129.03,129.02,0.05460148]
[1725453762480,0.04891869,129.05,129.02,0.05460148]
[1725453763876,23.86891869,129.05,129.02,0.05460148]
[1725453764077,3.8752,129.03,129.02,0.05460148]
[1725453764589,3.8769,128.98,128.87,31.5798]
[1725453764783,23.82,129.01,128.93,23.82]
[1725453765292,3.8772,128.97,128.92,23.82]
[1725453765489,0.05863206,128.96,128.94,3.8778]
[1725453765691,0.05863206,128.96,128.93,0.04888571]
[1725453765692,3.93613206,128.96,128.93,0.04888571]
[1725453765884,0.05863206,128.96,128.93,0.04888571]
[1725453767082,0.05863206,128.96,128.93,23.86888571]
[1725453767885,0.05863206,128.96,128.93,0.04888571]
[1725453768085,0.05863206,128.96,128.94,3.8778]
[1725453768894,0.05863206,128.96,128.95,3.8776]
[1725453772892,0.05863206,128.96,128.94,25.8906]
[1725453773399,0.05863206,128.96,128.94,29.7683]
[1725453774100,0.05863206,128.96,128.95,3.8776]
[1725453778099,1.4172,129.03,128.98,3.8767]
[1725453778292,1.4172,129.03,128.97,33.75175676]
[1725453778498,1.4172,129.03,128.97,29.8]
[1725453779099,3.93547503,129.01,128.99,0.05079044]
[1725453780303,0.05947503,129.01,128.99,3.92719044]
[1725453780900,0.05947503,129.01,129.0,3.8761]
[1725453781903,1.4498,129.08,129.0,3.8761]
[1725453781904,2.787,129.08,129.04,3.8749]
[1725453782102,2.787,129.08,129.0,29.8]
[1725453782103,3.8744,129.06,129.0,29.8]
[1725453782705,3.8747,129.05,129.0,29.8]
[1725453782906,3.8747,129.05,129.01,0.05069264]
[1725453782907,0.05170343,129.04,129.01,0.05069264]
[1725453783613,29.8,129.13,129.02,29.8]
[1725453783909,4.1749,129.12,129.06,29.8]
[1725453784114,227.0,129.23,129.1,29.8]
[1725453784409,231.0963,129.23,129.18,3.8704]
[1725453784712,0.45915053,129.22,129.19,0.05736576]
[1725453784906,3.8701,129.2,129.19,0.05736576]
[1725453785305,0.05419375,129.22,129.19,0.05736576]
[1725453785810,0.05419375,129.22,129.2,29.8]
[1725453786015,1.3762,129.29,129.22,29.8]
[1725453786404,1.3619,129.32,129.24,29.8]
[1725453786706,3.8671,129.31,129.24,29.8]
[1725453786909,0.05867174,129.29,129.26,0.05778115]
[1725453787616,2.6781,129.37,129.28,29.8]
[1725453787811,3.8659,129.35,129.31,29.8]
[1725453788009,2.6781,129.37,129.31,29.8]
[1725453788311,6.5737394,129.37,129.31,29.8]
[1725453788515,0.0569742,129.35,129.33,0.05458683]
[1725453788719,3.94554382,129.34,129.33,0.05458683]
[1725453789011,0.0569742,129.35,129.33,0.05458683]
[1725453789208,3.85860761,129.35,129.33,0.05458683]
[1725453790205,0.0569742,129.35,129.33,0.05458683]
[1725453790407,3.96189815,129.35,129.27,29.8]
[1725453790606,32.4781,129.37,129.27,29.8]
[1725453790811,29.8,129.35,129.25,29.8]
[1725453791005,6.5896005,129.37,129.25,29.8]
[1725453791210,29.8,129.36,129.25,33.6684]
[1725453791519,0.05779581,129.32,129.29,0.04947435]
[1725453791810,3.8674,129.29,129.25,33.6684]
[1725453792016,7.774,129.35,129.25,29.8]
[1725453792615,0.05915147,129.31,129.29,0.05809872]
[1725453792916,0.05915147,129.31,129.25,29.8]
[1725453793116,3.8677,129.29,129.25,29.8]
[1725453793307,37.574,129.34,129.25,29.8]
[1725453793711,0.05384229,129.31,129.28,0.05140517]
[1725453793916,3.94452503,129.3,129.28,0.05140517]
[1725453794620,3.8674,129.29,129.28,0.05140517]
[1725453800216,0.05384229,129.31,129.28,0.05140517]
[1725453800919,3.8673,129.3,129.28,0.05140517]
[1725453801420,3.8674,129.29,129.28,0.05140517]
[1725453801610,0.05384229,129.31,129.28,0.05140517]
[1725453801811,6.5896005,129.37,129.3,29.8]
[1725453802012,2.6781,129.37,129.34,29.8]
[1725453802217,6.5433,129.37,129.34,29.8]
[1725453802812,0.0493223,129.37,129.35,29.8]
[1725453804110,0.0493223,129.37,129.34,0.05469976]
[1725453804315,3.77620362,129.38,129.3,29.8]
[1725453804709,3.77620362,129.38,129.25,29.8]
[1725453804920,33.57620362,129.38,129.28,29.8]
[1725453805121,3.867,129.31,129.28,29.8]
[1725453805314,0.05387959,129.31,129.3,29.8]
[1725453805546,3.92067959,129.31,129.3,29.8]
[1725453805915,0.05387959,129.31,129.28,29.85630976]
[1725453806524,3.92087959,129.31,129.28,33.72380976]
[1725453807319,3.8672,129.3,129.28,29.85630976]
[1725453807519,0.05387959,129.31,129.28,0.05630976]
[1725453807924,0.05387959,129.31,129.26,29.8]
[1725453807925,0.05387959,129.31,129.14,8.0316]
[1725453808126,29.8,129.3,129.21,29.8]
[1725453808427,3.8695,129.22,129.19,29.8]
[1725453808829,3.8694,129.23,129.19,33.6702]
[1725453809125,0.05487931,129.22,129.19,33.71936249]
[1725453810419,3.92437931,129.22,129.19,33.71936249]
[1725453810624,0.05487931,129.22,129.19,33.71936249]
[1725453810924,0.05487931,129.22,129.21,29.8]
[1725453811424,0.05487931,129.22,129.19,0.04916249]
[1725453811621,35.01857752,129.22,129.19,0.04916249]
[1725453811820,31.1447,129.22,129.12,3.82712704]
[1725453812029,3.8713,129.17,129.12,3.8723]
[1725453812218,35.00472941,129.22,129.12,3.96454285]
[1725453812422,5.20472941,129.22,129.13,29.8]
[1725453812718,0.05811221,129.19,129.16,0.05139835]
[1725453813227,3.8712,129.17,129.16,0.05139835]
[1725453814030,3.8709,129.18,129.16,0.05139835]
[1725453816328,0.05811221,129.19,129.18,3.8707]
[1725453816526,0.05811221,129.19,129.16,0.05139835]
[1725453816920,3.92861221,129.19,129.16,0.05139835]
[1725453817632,0.05811221,129.19,129.17,29.8]
[1725453817925,1.4353,129.25,129.17,29.8]
[1725453818130,33.72039818,129.3,129.22,29.8]
[1725453818131,2.8916,129.28,129.22,29.8]
[1725453818534,3.92039818,129.3,129.22,29.8]
[1725453818833,1.3424,129.31,129.22,29.8]
[1725453819034,0.05834796,129.28,129.25,0.05923336]
[1725453819230,3.92624796,129.28,129.25,0.05923336]
[1725453819636,3.8681,129.27,129.25,0.05923336]
[1725453820428,3.92614796,129.28,129.25,0.05923336]
[1725453820735,0.05834796,129.28,129.25,0.05923336]
[1725453821530,3.8682,129.27,129.25,0.05923336]
[1725453821837,0.05834796,129.28,129.25,0.05923336]
[1725453822837,11.55020362,129.38,129.27,29.8]
[1725453823136,2.6366,129.35,129.27,29.8]
[1725453823535,3.867,129.31,129.28,3.8677]
[1725453823934,3.91676423,129.31,129.28,0.05803839]
[1725453824538,0.04976423,129.31,129.28,0.05803839]
[1725453824735,0.04976423,129.31,129.29,3.8672]
[1725453825934,0.04976423,129.31,129.28,0.05803839]
[1725453826338,3.8673,129.3,129.28,0.05803839]
[1725453826840,0.04976423,129.31,129.28,0.05803839]
[1725453827043,3.91676423,129.31,129.28,3.92563839]
[1725453828144,0.04976423,129.31,129.28,0.05803839]
[1725453828339,0.04976423,129.31,129.28,29.85803839]
[1725453828738,0.04976423,129.31,129.29,3.8673]
[1725453829238,0.04976423,129.31,129.3,33.6671]
[1725453830334,3.8658,129.35,129.32,3.8663]
[1725453830541,5.31140482,129.37,129.3,29.8]
[1725453830839,3.8661,129.34,129.31,3.8667]
[1725453831036,5.31140482,129.37,129.28,29.8]
[1725453831234,0.05826957,129.34,129.31,0.04925263]
[1725453831431,3.8664,129.33,129.31,0.04925263]
[1725453832444,3.8665,129.32,129.31,0.04925263]
[1725453833946,3.868,129.28,129.24,29.8]
[1725453834141,3.868,129.28,129.25,3.8685]
[1725453834341,3.8676,129.29,129.24,29.8]
[1725453834846,3.92051815,129.28,129.25,3.92584118]
[1725453835045,3.92051815,129.28,129.25,0.05670623]
[1725453835242,3.92051815,129.28,129.25,3.92510623]
[1725453836243,3.8683,129.26,129.25,0.05670623]
[1725453841546,0.05271815,129.28,129.25,0.05670623]
[1725453841749,0.05271815,129.28,129.26,3.8681]
[1725453841953,0.05271815,129.28,129.26,33.6681]
[1725453842150,0.05271815,129.28,129.26,29.8]
[1725453842452,3.8667,129.32,129.26,29.8]
[1725453842751,3.8667,129.32,129.28,29.8]
[1725453843256,1.373,129.34,129.28,29.8]
[1725453843450,0.05374881,129.32,129.29,0.05328493]
[1725453843857,0.05374881,129.32,129.3,33.6669]
[1725453845953,0.05374881,129.32,129.31,3.8668]
[1725453848753,0.05374881,129.32,129.31,3.8668]
[1725453850655,0.05374881,129.32,129.29,0.05328493]
[1725453851044,3.92044881,129.32,129.29,3.92058493]
[1725453851446,0.05374881,129.32,129.3,29.8]
[1725453851649,0.05374881,129.32,129.31,33.6668]
[1725453852154,6.50950215,129.37,129.31,33.6668]
[1725453852654,3.8661,129.34,129.31,33.6668]
[1725453853255,3.91761335,129.34,129.32,3.8664]
[1725453853549,0.05151335,129.34,129.32,3.8664]
[1725453853751,1.415,129.39,129.34,3.8658]
[1725453854746,1.415,129.39,129.35,0.05777698]
[1725453854957,3.96735095,129.38,129.35,0.05777698]
[1725453855254,3.8655,129.36,129.35,0.05777698]
[1725453858555,3.8652,129.37,129.35,0.05777698]
[1725453858756,1.37832781,129.38,129.35,0.05777698]
[1725453859556,3.8653,129.37,129.35,0.05777698]
[1725453861258,0.04902781,129.38,129.35,29.85777698]
[1725453861860,0.04902781,129.38,129.36,3.8652]
[1725453862257,0.04902781,129.38,129.35,0.05777698]
[1725453862762,3.91392781,129.38,129.35,0.05777698]
[1725453864462,3.91392781,129.38,129.36,3.8653]
[1725453864662,3.91392781,129.38,129.35,0.05777698]
[1725453864863,3.89877866,129.38,129.35,0.05777698]
[1725453865054,0.04902781,129.38,129.35,0.05777698]
[1725453865254,3.8653,129.37,129.35,0.05777698]
[1725453866059,3.8653,129.36,129.35,0.05777698]
[1725453868068,3.91382781,129.38,129.35,0.05777698]
[1725453868261,0.04902781,129.38,129.35,29.85777698]
[1725453868463,0.04902781,129.38,129.37,33.665]
[1725453868761,0.04902781,129.38,129.37,29.8]
[1725453868953,0.04902781,129.38,129.37,33.665]
[1725453870066,0.04902781,129.38,129.35,0.05777698]
[1725453870764,3.8652,129.37,129.35,0.05777698]
[1725453870958,0.04902781,129.38,129.35,29.85777698]
[1725453871154,0.04902781,129.38,129.37,29.8]
[1725453871363,3.91372781,129.38,129.35,0.05777698]
[1725453871757,3.8651,129.37,129.35,3.92327698]
[1725453872059,3.8651,129.37,129.35,0.05777698]
[1725453873170,3.865,129.37,129.35,0.05777698]
[1725453873766,3.865,129.37,129.35,3.92337698]
[1725453874163,3.865,129.37,129.35,0.05777698]
[1725453874364,3.8653,129.36,129.35,0.05777698]
[1725453875063,0.04902781,129.38,129.35,0.05777698]
[1725453875666,3.8653,129.36,129.35,0.05777698]
[1725453877269,0.04902781,129.38,129.35,0.05777698]
[1725453877868,3.8653,129.36,129.35,0.05777698]
[1725453880475,3.91382781,129.38,129.35,0.05777698]
[1725453880672,3.91382781,129.38,129.35,29.85777698]
[1725453880867,3.91382781,129.38,129.35,33.72317698]
[1725453881569,3.8651,129.37,129.35,33.72317698]
[1725453881874,3.8651,129.37,129.35,0.05777698]
[1725453882775,3.8653,129.36,129.35,0.05777698]
[1725453884276,3.8652,129.37,129.35,0.05777698]
[1725453884776,0.04902781,129.38,129.37,3.865]
[1725453886477,0.04902781,129.38,129.36,29.8]
[1725453886669,0.04902781,129.38,129.35,0.05777698]
[1725453886869,3.91392781,129.38,129.35,0.05777698]
[1725453887069,0.04902781,129.38,129.35,0.05777698]
[1725453887474,3.91402781,129.38,129.35,0.05777698]
[1725453887673,3.91402781,129.38,129.35,3.92327698]
[1725453887882,0.04902781,129.38,129.35,29.85777698]
[1725453888272,0.04902781,129.38,129.37,29.8]
[1725453888477,3.78217667,129.51,129.37,29.8]
[1725453888672,3.78217667,129.51,129.42,29.8]
[1725453888673,1.4564,129.49,129.42,29.8]
[1725453889077,3.8632,129.44,129.42,29.8]
[1725453889276,1.4564,129.49,129.42,29.8]
[1725453889476,0.05468741,129.47,129.44,0.05950251]
[1725453889885,3.8627,129.45,129.44,0.05950251]
[1725453890382,0.05468741,129.47,129.44,0.05950251]
[1725453891073,3.8626,129.45,129.44,0.05950251]
[1725453891274,31.2564,129.49,129.4,29.8]
[1725453891472,3.8638,129.42,129.38,3.8645]
[1725453891669,3.8739479,129.44,129.38,3.8645]
[1725453891875,1.3459,129.43,129.37,33.61829662]
[1725453892178,1.3459,129.43,129.37,33.6649]
[1725453892379,0.05320758,129.41,129.39,0.05223863]
[1725453892777,3.8643,129.4,129.39,0.05223863]
[1725453894175,3.91720758,129.41,129.39,0.05223863]
[1725453894976,11.61601979,129.51,129.4,29.8]
[1725453895182,2.6722,129.5,129.42,29.8]
[1725453895375,6.59983259,129.5,129.42,29.8]
[1725453895577,3.8625,129.46,129.42,29.8]
[1725453895776,36.26569002,129.5,129.39,29.8]
[1725453895981,29.8,129.48,129.39,29.8]
[1725453896381,0.05620771,129.45,129.42,0.05435875]
[1725453896580,3.93072522,129.44,129.42,0.05435875]
[1725453896781,5.28742522,129.44,129.42,0.05435875]
[1725453897085,3.8632,129.43,129.42,0.05435875]
[1725453898087,1.3567,129.44,129.42,0.05435875]
[1725453898888,3.8632,129.43,129.42,0.05435875]
[1725453901781,0.05620771,129.45,129.44,3.8629]
[1725453902283,3.8612,129.5,129.44,29.8]
[1725453902485,5.32704564,129.51,129.44,29.8]
[1725453902681,1.3834,129.51,129.44,29.8]
[1725453902891,3.8613,129.5,129.46,3.8622]
[1725453903188,3.8613,129.5,129.44,29.8]
[1725453903389,3.8613,129.5,129.47,0.05253146]
[1725453903390,0.05487048,129.49,129.47,0.05253146]
[1725453904981,3.8617,129.48,129.47,0.05253146]
[1725453905793,0.05487048,129.49,129.47,0.05253146]
[1725453905984,0.05487048,129.49,129.48,29.8]
[1725453906182,11.65254589,129.54,129.48,29.8]